bitfinex-derivatives/quotes_BNBF0:USTF0_20250326
["timestamp","ask_amount","ask_price","bid_price","bid_amount"]
[1742959062012,1.073,629.33,628.57,0.27151699]
[1742959062209,1.073,629.33,628.51,0.27151699]
[1742959062409,1.073,629.33,628.52,0.27151699]
[1742959062613,1.073,629.33,628.53,0.27151699]
[1742959062815,1.073,629.33,628.51,0.27151699]
[1742959063016,1.073,629.33,628.54,1.18608911]
[1742959063316,1.073,629.33,628.55,0.27151699]
[1742959065713,1.073,629.33,628.54,1.18608911]
[1742959065919,1.073,629.33,628.55,0.27151466]
[1742959066216,1.073,629.33,628.6,1.18608911]
[1742959066419,1.073,629.33,628.61,0.27151466]
[1742959068914,1.073,629.33,628.6,1.18608911]
[1742959069117,1.073,629.33,628.61,0.27149817]
[1742959070921,1.073,629.33,628.61,1.45758728]
[1742959071219,1.073,629.33,628.62,0.27149817]
[1742959073629,1.073,629.33,628.68,1.18608911]
[1742959074631,1.073,629.33,628.69,0.27149028]
[1742959075232,1.073,629.33,628.68,1.18608911]
[1742959076342,1.073,629.33,628.71,1.18608911]
[1742959079440,1.073,629.33,628.64,1.18608911]
[1742959081943,1.073,629.33,628.7,1.18608911]
[1742959084945,1.073,629.33,628.72,1.18608911]
[1742959087446,1.073,629.33,628.74,1.18608911]
[1742959089049,1.073,629.33,628.75,0.27143048]
[1742959089241,1.073,629.33,628.76,0.2714289]
[1742959089443,1.073,629.33,628.77,0.2714289]
[1742959089653,1.073,629.33,628.79,1.18608911]
[1742959089948,1.073,629.33,628.8,0.2714289]
[1742959090348,1.073,629.33,628.79,1.18608911]
[1742959091047,1.073,629.33,628.8,0.27142085]
[1742959091742,1.073,629.33,628.85,1.18608911]
[1742959094651,1.073,629.33,628.86,0.2714245]
[1742959094846,1.073,629.33,628.87,0.2714245]
[1742959095047,1.073,629.33,628.85,0.2714245]
[1742959095247,1.073,629.33,628.86,0.2714245]
[1742959095448,1.073,629.33,628.87,0.2714245]
[1742959095749,1.073,629.33,628.88,0.2714245]
[1742959095949,1.073,629.33,628.85,0.2714245]
[1742959096151,1.073,629.33,628.86,0.2714245]
[1742959096355,1.073,629.33,628.87,0.2714245]
[1742959096645,1.073,629.33,628.84,1.18608911]
[1742959096646,1.073,629.33,628.88,0.2714245]
[1742959096857,1.073,629.33,628.85,0.2714245]
[1742959097051,1.073,629.33,628.86,0.2714245]
[1742959097252,1.073,629.33,628.85,0.2714245]
[1742959097453,1.073,629.33,628.9,1.18608911]
[1742959098053,1.073,629.33,628.91,0.27141949]
[1742959099756,1.073,629.33,628.91,1.4575086]
[1742959100056,1.073,629.33,628.92,0.27141949]
[1742959100453,1.073,629.33,628.91,1.18608911]
[1742959102457,1.073,629.33,628.81,1.18608911]
[1742959102850,1.073,629.33,628.82,0.27140455]
[1742959104861,1.073,629.33,628.83,1.18608911]
[1742959106367,1.073,629.33,628.84,0.27140971]
[1742959108162,1.073,629.33,628.83,1.18608911]
[1742959108763,1.073,629.33,628.85,1.18608911]
[1742959111466,1.073,629.33,628.89,1.18608911]
[1742959111764,1.073,629.33,628.9,0.27140207]
[1742959113165,1.073,629.33,628.94,1.18608911]
[1742959114963,1.073,629.33,628.95,0.27138947]
[1742959115164,1.073,629.33,628.94,1.18608911]
[1742959115359,1.073,629.33,628.95,0.27138954]
[1742959115960,1.073,629.33,628.97,1.18608911]
[1742959117058,1.073,629.33,628.98,0.27139006]
[1742959117260,1.073,629.33,628.97,1.18608911]
[1742959117464,1.073,629.33,628.98,0.27138969]
[1742959117660,1.073,629.33,628.97,1.18608911]
[1742959118162,1.073,629.33,629.0,1.18608911]
[1742959122772,1.073,629.33,629.05,1.18608911]
[1742959123170,6.09010488,630.78,629.05,1.18608911]
[1742959123370,0.31707781,630.76,629.05,1.18608911]
[1742959123571,0.27650539,629.74,629.05,1.18608911]
[1742959123771,0.31707781,630.76,629.05,1.18608911]
[1742959123964,0.29181084,630.75,629.05,1.18608911]
[1742959124170,0.31709289,630.73,629.05,1.18608911]
[1742959124469,0.29181084,630.72,629.05,1.18608911]
[1742959124772,0.31710797,630.7,629.05,1.18608911]
[1742959124968,0.29181084,630.69,629.05,1.18608911]
[1742959125169,0.31712305,630.67,629.04,1.18608911]
[1742959125367,0.29181084,630.66,629.04,1.18608911]
[1742959125570,0.31713814,630.64,629.04,1.18608911]
[1742959125771,0.29181084,630.63,629.04,1.18608911]
[1742959125965,0.31715323,630.61,629.04,1.18608911]
[1742959126171,0.29181084,630.6,629.04,1.18608911]
[1742959126567,0.31716832,630.58,629.04,1.18608911]
[1742959126769,0.29181084,630.57,629.04,1.18608911]
[1742959126968,0.31718341,630.55,629.04,1.18608911]
[1742959127171,0.29181084,630.54,629.04,1.18608911]
[1742959127375,0.3171985,630.52,629.06,1.18608911]
[1742959127568,0.29181084,630.51,629.06,1.18608911]
[1742959127872,0.31721359,630.49,629.06,1.18608911]
[1742959128067,0.29181084,630.48,629.06,1.18608911]
[1742959128270,0.31722869,630.46,629.06,1.18608911]
[1742959128473,0.29181084,630.45,629.06,1.18608911]
[1742959128675,0.31724378,630.43,629.06,1.18608911]
[1742959128871,0.29181084,630.42,629.07,0.27135297]
[1742959129067,0.29181084,630.41,629.07,0.27135297]
[1742959129273,0.31726391,630.39,629.07,0.27135297]
[1742959129472,0.29181084,630.38,629.07,0.27135297]
[1742959129671,0.31727901,630.36,629.07,1.45744208]
[1742959129874,0.31727901,630.36,629.07,1.18608911]
[1742959130076,0.29179785,630.35,629.08,0.27135408]
[1742959130272,0.31729411,630.33,629.08,0.27135408]
[1742959130477,0.29179785,630.32,629.08,0.27135408]
[1742959130777,0.31730921,630.3,629.08,0.27135408]
[1742959130976,0.29179785,630.29,629.08,0.27135408]
[1742959131178,0.31732432,630.27,629.08,0.27135408]
[1742959131477,0.29179785,630.26,629.07,1.18608911]
[1742959131977,0.31733942,630.24,629.16,1.18608911]
[1742959132172,0.29179785,630.23,629.16,1.18608911]
[1742959132372,0.31735453,630.21,629.16,1.18608911]
[1742959132575,0.29179785,630.2,629.16,1.18608911]
[1742959132872,0.31736964,630.18,629.16,1.18608911]
[1742959133069,0.29179785,630.17,629.16,1.18608911]
[1742959133274,0.31737971,630.16,629.16,1.18608911]
[1742959133571,0.29179785,630.15,629.16,1.18608911]
[1742959133776,0.31738978,630.14,629.16,1.18608911]
[1742959134177,0.31738978,630.14,629.1,1.18608911]
[1742959136180,0.31738978,630.14,629.05,1.18608911]
[1742959136775,0.27635388,630.13,629.05,1.18608911]
[1742959136974,0.31739986,630.12,629.05,1.18608911]
[1742959139482,0.27635388,630.11,629.05,1.18608911]
[1742959139675,0.31740993,630.1,629.05,1.18608911]
[1742959141482,0.31740993,630.1,629.06,0.27132524]
[1742959141679,0.27640656,630.09,629.06,0.27132524]
[1742959141881,0.31742001,630.08,629.06,0.27132524]
[1742959143791,0.31742001,630.08,629.09,1.18608911]
[1742959144090,0.31742001,630.08,629.1,0.27131525]
[1742959144490,0.77142001,630.08,629.1,0.27131525]
[1742959144686,0.27638899,630.07,629.1,0.27131525]
[1742959144887,0.59381403,630.07,629.1,0.27131525]
[1742959146794,1.41681403,630.07,629.12,1.18608911]
[1742959147092,1.14042504,630.07,629.13,0.27131525]
[1742959147486,0.27638131,630.06,629.13,0.27131525]
[1742959149094,0.27638131,630.06,629.18,1.18608911]
[1742959150300,1.14042504,630.07,629.18,1.18608911]
[1742959151500,0.27636595,630.06,629.18,1.18608911]
[1742959151801,0.27636595,630.06,629.05,1.18608911]
[1742959154201,0.27636595,630.06,629.04,1.18608911]
[1742959156196,1.14042504,630.07,629.04,1.18608911]
[1742959156602,0.27636814,630.05,629.04,1.18608911]
[1742959157002,0.27636814,630.05,629.02,1.46245725]
[1742959159104,0.27636814,630.05,629.02,0.27636814]
[1742959159305,0.31742504,630.07,629.01,1.18608911]
[1742959159504,0.31742504,630.07,629.02,0.2763429]
[1742959159897,0.31742504,630.07,629.03,0.31794985]
[1742959161505,1.15642504,630.07,629.03,0.31794985]
[1742959166002,1.61042504,630.07,629.03,0.31794985]
[1742959168810,1.61042504,630.07,629.04,0.27103537]
[1742959170305,1.61042504,630.07,629.03,0.31794985]
[1742959170506,1.61042504,630.07,629.04,0.27100442]
[1742959172101,1.61042504,630.07,629.15,1.18608911]
[1742959172302,1.61042504,630.07,629.16,0.27103035]
[1742959173607,1.61042504,630.07,629.15,1.18608911]
[1742959173809,1.61042504,630.07,629.16,0.2710481]
[1742959174410,1.61042504,630.07,629.16,1.45713721]
[1742959174612,1.61042504,630.07,629.17,0.2710481]
[1742959176413,1.61042504,630.07,629.17,1.45713721]
[1742959176614,1.61042504,630.07,629.18,0.2710481]
[1742959179114,1.61042504,630.07,629.31,1.18608911]
[1742959179409,1.61042504,630.07,629.32,0.2710481]
[1742959181114,1.61042504,630.07,629.41,1.18608911]
[1742959181320,1.61042504,630.07,629.42,0.2710481]
[1742959181514,1.61042504,630.07,629.41,1.18608911]
[1742959181714,1.61042504,630.07,629.42,0.27106667]
[1742959183416,1.61042504,630.07,629.42,1.45715578]
[1742959183619,1.61042504,630.07,629.43,0.27106667]
[1742959186327,1.61042504,630.07,629.47,1.18608911]
[1742959188322,1.61042504,630.07,629.48,0.27105059]
[1742959189523,1.61042504,630.07,629.47,1.18608911]
[1742959189823,1.61042504,630.07,629.48,0.27104867]
[1742959190223,1.61042504,630.07,629.51,1.18608911]
[1742959191522,1.61042504,630.07,629.53,1.18608911]
[1742959193926,1.61042504,630.07,629.33,1.18608911]
[1742959196427,1.61042504,630.07,629.36,1.18608911]
[1742959202130,1.61042504,630.07,629.34,1.18608911]
[1742959204635,1.61042504,630.07,629.45,1.18608911]
[1742959206543,1.61042504,630.07,629.47,1.18608911]
[1742959208137,1.61042504,630.07,629.44,1.18608911]
[1742959212947,1.61042504,630.07,629.48,1.18608911]
[1742959213751,0.27632425,630.06,629.48,1.18608911]
[1742959214349,0.27632425,630.06,629.43,1.18608911]
[1742959216253,0.31742504,630.07,629.43,1.18608911]
[1742959217047,0.31742504,630.07,629.42,1.18608911]
[1742959217247,0.77242504,630.07,629.42,1.18608911]
[1742959217650,0.59368852,630.06,629.42,1.18608911]
[1742959217852,0.31743512,630.05,629.42,1.18608911]
[1742959219949,0.31743512,630.05,628.96,1.42330694]
[1742959219950,0.31743512,630.05,629.23,1.18608911]
[1742959220546,0.27639338,630.04,629.23,1.18608911]
[1742959220750,0.3174452,630.03,629.23,1.18608911]
[1742959221750,0.3174452,630.03,628.98,1.18608911]
[1742959221949,0.3174452,630.03,628.99,0.27132481]
[1742959223456,0.27642083,630.02,628.99,0.27132481]
[1742959223657,0.31745527,630.01,628.99,0.27132481]
[1742959225053,0.31745527,630.01,629.0,0.27132481]
[1742959225257,0.31745527,630.01,628.97,0.27132481]
[1742959225458,0.31745527,630.01,628.98,0.27132481]
[1742959225660,0.31745527,630.01,628.99,0.27132481]
[1742959225852,0.31745527,630.01,629.0,0.27132481]
[1742959226054,0.31745527,630.01,628.97,0.27132481]
[1742959226255,0.31745527,630.01,628.96,1.18608911]
[1742959226256,0.31745527,630.01,628.98,0.27132481]
[1742959226451,0.31745527,630.01,628.99,0.27132481]
[1742959226756,0.31745527,630.01,628.96,1.18608911]
[1742959226757,0.31745527,630.01,629.0,0.27132481]
[1742959227057,0.31745527,630.01,629.01,0.27132481]
[1742959227254,0.31745527,630.01,628.97,0.27132481]
[1742959227457,0.31745527,630.01,628.98,0.27132481]
[1742959227758,0.31745527,630.01,628.99,0.27132481]
[1742959227958,0.31745527,630.01,629.0,0.27132481]
[1742959228158,0.31745527,630.01,628.92,0.27132481]
[1742959228358,0.31745527,630.01,628.93,0.27132481]
[1742959228559,0.31745527,630.01,628.92,0.27132481]
[1742959228758,0.31745527,630.01,628.93,0.27132481]
[1742959228959,0.31745527,630.01,628.92,0.27132481]
[1742959229259,0.31745527,630.01,628.93,0.27127526]
[1742959229452,0.31745527,630.01,628.92,0.27127526]
[1742959229658,0.31745527,630.01,628.93,0.27127526]
[1742959229855,0.31745527,630.01,628.94,0.27127526]
[1742959230062,0.31745527,630.01,628.95,0.27127526]
[1742959230361,0.31745527,630.01,628.96,0.27127526]
[1742959230561,0.31745527,630.01,628.97,0.27127526]
[1742959230762,0.31745527,630.01,628.98,0.27127526]
[1742959230963,0.31745527,630.01,628.99,0.27127526]
[1742959231163,0.31745527,630.01,628.92,0.27127526]
[1742959231361,0.31745527,630.01,628.9,1.18608911]
[1742959231362,0.31745527,630.01,628.93,0.27127526]
[1742959231564,0.2764351,630.0,628.91,0.54771036]
[1742959231762,0.31746535,629.99,628.92,0.27127526]
[1742959231959,0.31746535,629.99,628.93,1.18608911]
[1742959232162,0.31746535,629.99,628.94,0.27127526]
[1742959234156,0.31746535,629.99,628.93,1.18608911]
[1742959234465,0.31746535,629.99,628.94,0.27126868]
[1742959235663,0.93642632,629.98,628.94,0.27126868]
[1742959236965,0.93642632,629.98,628.94,1.45735779]
[1742959237162,0.93642632,629.98,628.95,0.27126868]
[1742959237363,0.66,629.98,628.95,0.27126868]
[1742959238567,0.2764351,629.97,628.95,0.27126868]
[1742959238765,0.2764351,629.97,628.96,0.27123419]
[1742959239065,0.2764351,629.97,628.99,1.18608911]
[1742959239259,0.2764351,629.97,629.0,0.27123419]
[1742959240264,0.66,629.98,629.0,0.27123419]
[1742959240665,0.27642961,629.96,629.0,0.27123419]
[1742959242165,0.27642961,629.96,629.02,1.18608911]
[1742959242364,0.27642961,629.96,629.03,0.27123419]
[1742959243366,0.66,629.98,629.03,0.27123419]
[1742959243665,0.455,629.95,629.03,0.27123419]
[1742959244567,0.27642632,629.94,629.03,0.27123419]
[1742959245468,0.27642632,629.94,629.02,0.27123419]
[1742959245669,0.27642632,629.94,629.03,0.27123419]
[1742959245871,0.27642632,629.94,629.02,0.27123419]
[1742959246068,0.27642632,629.94,629.01,1.18608911]
[1742959246269,0.455,629.95,629.02,0.27121636]
[1742959246583,0.27643071,629.93,629.02,0.27121636]
[1742959247772,0.27643071,629.93,629.03,1.18608911]
[1742959249372,0.455,629.95,629.03,1.18608911]
[1742959250173,0.455,629.95,629.07,1.18608911]
[1742959250575,0.27642522,629.94,629.07,1.18608911]
[1742959252175,0.455,629.95,629.07,1.18608911]
[1742959252370,0.455,629.95,629.08,0.27122414]
[1742959252574,0.27642412,629.93,629.12,1.18608911]
[1742959254373,0.27642412,629.93,629.23,1.18608911]
[1742959255378,0.455,629.95,629.23,1.18608911]
[1742959255773,0.27640656,629.92,629.23,1.18608911]
[1742959256776,0.27640656,629.92,629.25,1.18608911]
[1742959258373,0.455,629.95,629.25,1.18608911]
[1742959258972,0.77248551,629.95,629.25,1.18608911]
[1742959259680,0.27641314,629.94,629.25,1.18608911]
[1742959261376,0.77248551,629.95,629.25,1.18608911]
[1742959261582,0.27641314,629.93,629.2,1.18608911]
[1742959264286,0.77248551,629.95,629.2,1.18608911]
[1742959264783,0.27641863,629.92,629.2,1.18608911]
[1742959265784,0.27641863,629.92,629.22,1.18608911]
[1742959266282,0.928,629.91,629.22,1.18608911]
[1742959267585,0.27642083,629.9,629.22,1.18608911]
[1742959267984,0.27642083,629.9,628.87,0.27642083]
[1742959267985,0.27642083,629.9,629.23,1.18608911]
[1742959270282,0.928,629.91,629.06,1.18608911]
[1742959270787,0.27641973,629.89,629.06,1.18608911]
[1742959271982,0.27641973,629.89,629.05,1.18608911]
[1742959272487,0.455,629.88,629.05,1.18608911]
[1742959274092,0.455,629.88,629.0,1.18608911]
[1742959275991,0.455,629.88,628.99,1.18608911]
[1742959277585,0.27644608,629.87,628.99,1.18608911]
[1742959278395,0.27644608,629.87,629.0,1.18608911]
[1742959279192,0.455,629.88,629.0,1.18608911]
[1742959280295,0.455,629.88,629.06,1.18608911]
[1742959280494,0.27643839,629.87,629.06,1.18608911]
[1742959282394,0.455,629.88,629.06,1.18608911]
[1742959282796,0.455,629.88,629.07,1.18608911]
[1742959283589,0.27642851,629.87,629.07,1.18608911]
[1742959284506,0.27642851,629.87,629.19,1.18608911]
[1742959285296,0.455,629.88,629.19,1.18608911]
[1742959286393,0.928,629.91,629.19,1.18608911]
[1742959286596,0.27640436,629.87,629.19,1.18608911]
[1742959286898,0.27640436,629.87,629.25,1.18608911]
[1742959288390,0.31748551,629.95,629.25,1.18608911]
[1742959289001,0.31748551,629.95,629.15,1.18608911]
[1742959289694,0.27626283,629.94,629.15,1.18608911]
[1742959290197,0.73126283,629.94,629.15,1.18608911]
[1742959290997,0.73126283,629.94,629.23,1.18608911]
[1742959291600,1.57426283,629.94,629.23,1.18608911]
[1742959292410,1.57426283,629.94,629.24,0.2708799]
[1742959293213,1.57426283,629.94,629.27,1.18608911]
[1742959293413,1.57426283,629.94,629.28,0.2708799]
[1742959294416,1.298,629.94,629.28,0.2708799]
[1742959295418,1.298,629.94,629.3,1.18608911]
[1742959298820,1.298,629.94,629.06,0.27635388]
[1742959298821,1.298,629.94,629.13,1.18608911]
[1742959301218,1.298,629.94,629.1,1.18608911]
[1742959304020,1.298,629.94,629.08,0.27637253]
[1742959304220,1.298,629.94,629.09,0.27082739]
[1742959306424,1.298,629.94,629.1,0.27085899]
[1742959306623,1.298,629.94,629.11,0.27085899]
[1742959306922,1.298,629.94,629.12,0.27085899]
[1742959307120,1.298,629.94,629.08,0.27637253]
[1742959307121,1.298,629.94,629.09,0.27085899]
[1742959307322,1.298,629.94,629.1,0.27085899]
[1742959307516,1.298,629.94,629.09,0.27085899]
[1742959307714,1.298,629.94,629.1,0.27085899]
[1742959307923,1.298,629.94,629.11,0.27085899]
[1742959308222,1.298,629.94,629.12,0.27085899]
[1742959308415,1.298,629.94,629.09,0.27085899]
[1742959308615,1.298,629.94,629.1,0.27085899]
[1742959308819,1.298,629.94,629.12,1.18608911]
[1742959309027,1.298,629.94,629.13,0.27085899]
[1742959310927,1.298,629.94,629.13,1.4569481]
[1742959311226,1.298,629.94,629.14,0.27085899]
[1742959312728,1.298,629.94,629.15,0.2708607]
[1742959312929,1.298,629.94,629.14,0.2708607]
[1742959313128,1.298,629.94,629.15,0.2708607]
[1742959313330,1.298,629.94,629.14,0.2708607]
[1742959313533,1.298,629.94,629.23,1.18608911]
[1742959313725,1.298,629.94,629.24,0.2708607]
[1742959314130,1.298,629.94,629.23,1.18608911]
[1742959315426,1.298,629.94,629.13,1.18608911]
[1742959315631,1.298,629.94,629.14,0.27089978]
[1742959316432,1.298,629.94,629.13,1.18608911]
[1742959316733,1.298,629.94,629.14,0.27090306]
[1742959317728,1.298,629.94,629.15,1.18608911]
[1742959319433,1.298,629.94,629.17,1.18608911]
[1742959321331,1.298,629.94,629.18,1.18608911]
[1742959322634,0.2763846,629.93,629.18,1.18608911]
[1742959324339,0.31748551,629.95,629.18,1.18608911]
[1742959325539,0.27624638,629.94,629.23,1.18608911]
[1742959325936,1.15324638,629.94,629.23,1.18608911]
[1742959327141,1.15324638,629.94,629.25,1.18608911]
[1742959327333,0.877,629.94,629.25,1.18608911]
[1742959328641,0.27637692,629.93,629.24,1.18608911]
[1742959329939,0.27637692,629.93,629.25,0.27082522]
[1742959330333,0.877,629.94,629.25,0.27082522]
[1742959330840,0.877,629.94,629.33,1.18608911]
[1742959331938,0.877,629.94,629.04,0.27636156]
[1742959331939,0.877,629.94,629.36,1.18608911]
[1742959333743,0.27637143,629.93,629.36,1.18608911]
[1742959334143,0.27637143,629.93,629.33,1.18608911]
[1742959336442,0.877,629.94,629.33,1.18608911]
[1742959336845,0.27637473,629.92,629.34,1.18608911]
[1742959339749,0.27637473,629.92,629.16,1.18608911]
[1742959340850,0.27637473,629.92,629.17,0.27094154]
[1742959341051,0.27637473,629.92,629.16,1.18608911]
[1742959341851,0.27637473,629.92,629.1,1.18608911]
[1742959342051,0.27637473,629.92,629.11,0.27094289]
[1742959344354,0.455,629.91,629.11,0.27094289]
[1742959344851,0.455,629.91,629.19,1.18608911]
[1742959345756,0.27639887,629.9,629.19,1.18608911]
[1742959347151,0.27639887,629.9,629.15,1.18608911]
[1742959348361,0.455,629.91,629.15,1.18608911]
[1742959349163,0.455,629.91,629.16,1.18608911]
[1742959349760,0.27639997,629.9,629.16,1.18608911]
[1742959351260,0.455,629.91,629.12,1.18608911]
[1742959352566,0.27640436,629.9,629.12,1.18608911]
[1742959353861,0.27640436,629.9,629.14,1.18608911]
[1742959354358,0.455,629.91,629.14,1.18608911]
[1742959355563,0.27640107,629.9,629.14,1.18608911]
[1742959356568,0.966,629.89,629.14,1.18608911]
[1742959357970,0.966,629.89,629.15,1.18608911]
[1742959358669,0.27640656,629.88,629.15,1.18608911]
[1742959360465,0.966,629.89,629.15,1.18608911]
[1742959360666,0.27641973,629.87,629.15,1.18608911]
[1742959362173,0.27641973,629.87,629.16,0.27105171]
[1742959362575,0.27641973,629.87,629.16,1.45714082]
[1742959362776,0.27641973,629.87,629.17,0.27105171]
[1742959363466,0.966,629.89,629.17,0.27105171]
[1742959364068,0.966,629.89,629.18,0.27102708]
[1742959364271,0.966,629.89,629.17,0.27102708]
[1742959364473,0.966,629.89,629.18,0.27102708]
[1742959364673,0.27641863,629.88,629.17,0.27102708]
[1742959364871,0.27641863,629.88,629.18,0.27102708]
[1742959365069,0.27641863,629.88,629.19,0.27102708]
[1742959365271,0.27641863,629.88,629.17,0.27102708]
[1742959365874,0.27641863,629.88,629.22,1.18608911]
[1742959366276,0.966,629.89,629.22,1.18608911]
[1742959366674,0.27641204,629.88,629.22,1.18608911]
[1742959367971,0.27641204,629.88,628.92,0.27641204]
[1742959367972,0.27641204,629.88,629.23,1.18608911]
[1742959369380,0.966,629.89,629.23,1.18608911]
[1742959369678,0.27641095,629.87,629.23,1.18608911]
[1742959370580,0.27641095,629.87,629.28,1.18608911]
[1742959372381,0.31748551,629.95,629.3,1.18608911]
[1742959372783,0.27639887,629.86,629.3,1.18608911]
[1742959373082,0.31748551,629.95,629.3,1.18608911]
[1742959373776,0.27631767,629.94,629.3,1.18608911]
[1742959374175,1.15131767,629.94,629.3,1.18608911]
[1742959374480,1.60631767,629.94,629.3,1.18608911]
[1742959375277,1.33,629.94,629.3,1.18608911]
[1742959376585,0.2763846,629.93,629.3,1.18608911]
[1742959378085,0.2763846,629.93,629.16,1.18608911]
[1742959378485,1.33,629.94,629.16,1.18608911]
[1742959378883,0.27639997,629.92,629.16,1.18608911]
[1742959380889,0.27639997,629.92,629.13,1.18608911]
[1742959381281,1.33,629.94,629.13,1.18608911]
[1742959382689,0.27642083,629.93,629.13,1.18608911]
[1742959383489,0.31750063,629.92,629.13,1.18608911]
[1742959385186,0.31750063,629.92,629.02,1.18608911]
[1742959385588,0.27643839,629.91,629.02,1.18608911]
[1742959385788,0.31751071,629.9,629.02,1.18608911]
[1742959387295,0.31751071,629.9,628.93,1.18608911]
[1742959388591,0.27646035,629.89,628.93,1.18608911]
[1742959389399,0.27646035,629.89,628.94,1.18608911]
[1742959390597,0.31751071,629.9,628.94,1.18608911]
[1742959390898,0.27645267,629.88,628.94,1.18608911]
[1742959391500,0.27645267,629.88,628.99,1.18608911]
[1742959393400,0.31751071,629.9,628.99,1.18608911]
[1742959393700,0.27644718,629.87,628.99,1.18608911]
[1742959395199,0.27644718,629.87,629.0,0.2710283]
[1742959396499,0.31751071,629.9,629.0,0.2710283]
[1742959397096,0.455,629.89,629.0,0.2710283]
[1742959397497,0.455,629.89,629.01,0.27088501]
[1742959397695,0.27642083,629.88,629.0,0.27088501]
[1742959397898,0.27642083,629.88,629.01,0.27088501]
[1742959398093,0.27642083,629.88,629.0,0.27088501]
[1742959398297,0.27642083,629.88,629.01,0.27088501]
[1742959398495,0.27642083,629.88,629.02,0.27088501]
[1742959398698,0.27642083,629.88,629.03,0.27088501]
[1742959398898,0.27642083,629.88,629.0,0.27088501]
[1742959399399,0.455,629.89,629.0,0.27088501]
[1742959400198,0.455,629.89,629.21,1.18608911]
[1742959400601,0.27639668,629.88,629.21,1.18608911]
[1742959401799,0.27639668,629.88,629.19,1.18608911]
[1742959402396,0.455,629.89,629.19,1.18608911]
[1742959402603,0.27639997,629.87,629.19,1.18608911]
[1742959404203,0.27639997,629.87,629.2,0.27082704]
[1742959404404,0.27639997,629.87,629.19,1.18608911]
[1742959405402,0.455,629.89,629.19,1.18608911]
[1742959406104,0.761,629.88,629.19,1.18608911]
[1742959406599,0.761,629.88,629.2,0.2708179]
[1742959407203,0.761,629.88,629.19,1.18608911]
[1742959408504,0.761,629.88,629.25,1.18608911]
[1742959410107,0.761,629.88,629.12,1.18608911]
[1742959413006,0.761,629.88,629.02,1.46248469]
[1742959414401,0.761,629.88,629.02,1.18608911]
[1742959414806,0.27641973,629.87,629.02,1.18608911]
[1742959415000,0.27641973,629.87,628.99,0.27641973]
[1742959417299,0.761,629.88,628.97,1.18608911]
[1742959417501,0.761,629.88,628.98,0.2709334]
[1742959417704,0.761,629.88,628.98,0.54735862]
[1742959417906,0.761,629.88,628.98,0.27642522]
[1742959418400,0.455,629.89,628.98,0.27642522]
[1742959418801,0.27642632,629.87,628.98,0.27642522]
[1742959419900,0.27642632,629.87,628.99,0.27093789]
[1742959420105,0.27642632,629.87,629.02,1.18608911]
[1742959420407,0.455,629.89,629.03,0.27093789]
[1742959420701,0.27641863,629.87,629.03,0.27093789]
[1742959421708,0.27641863,629.87,629.04,0.27095382]
[1742959422007,0.27641863,629.87,629.05,0.27095382]
[1742959422205,0.27641863,629.87,629.02,1.18608911]
[1742959422206,0.952,629.86,629.03,0.27095382]
[1742959422805,0.952,629.86,629.12,1.18608911]
[1742959423003,0.952,629.86,629.13,0.27095382]
[1742959424704,0.27642412,629.85,629.13,0.27095382]
[1742959425011,0.27642412,629.85,629.2,1.18608911]
[1742959425709,0.455,629.84,629.2,1.18608911]
[1742959426808,0.27642741,629.83,629.2,1.18608911]
[1742959427406,0.27642741,629.83,629.12,1.18608911]
[1742959429513,0.455,629.84,629.12,1.18608911]
[1742959430723,0.73141753,629.84,629.12,1.18608911]
[1742959430912,0.73141753,629.84,629.13,0.27104871]
[1742959431211,0.73141753,629.84,629.12,1.18608911]
[1742959431412,0.73141753,629.84,629.13,0.27104116]
[1742959431813,0.73141753,629.84,629.16,1.18608911]
[1742959432313,0.455,629.84,629.16,1.18608911]
[1742959433213,0.455,629.84,629.17,0.27104162]
[1742959434111,0.455,629.84,629.17,1.45713073]
[1742959434316,0.455,629.84,629.18,0.27104162]
[1742959436220,0.455,629.84,629.23,1.18608911]
[1742959441526,0.455,629.84,629.03,1.18608911]
[1742959443426,0.455,629.84,628.96,0.27642302]
[1742959443427,0.455,629.84,629.02,1.18608911]
[1742959445729,0.455,629.84,629.04,1.18608911]
[1742959448025,0.455,629.84,629.05,1.18608911]
[1742959448426,0.455,629.84,629.06,0.27100437]
[1742959449823,0.455,629.84,629.05,1.18608911]
[1742959450029,0.455,629.84,629.06,0.27100612]
[1742959450230,0.455,629.84,629.23,1.18608911]
[1742959453929,0.721,629.83,629.23,1.18608911]
[1742959454335,0.721,629.83,629.24,1.18608911]
[1742959458935,1.177,629.83,629.24,1.18608911]
[1742959460438,1.177,629.83,629.25,1.18608911]